bitfinex/quotes_ETHUSD_20241123
["timestamp","ask_amount","ask_price","bid_price","bid_amount"]
[1732394878348,3.07881263,3403.6,3403.0,2.93857]
[1732394878547,0.14074263,3403.6,3402.9,3.8041]
[1732394878758,3.07886263,3403.6,3402.9,3.74275]
[1732394878960,2.93815,3403.5,3402.9,3.74275]
[1732394879364,2.93838,3403.3,3402.9,0.8041]
[1732394879700,2.93815,3403.5,3402.9,3.8041]
[1732394879701,2.93825,3403.4,3402.9,3.8041]
[1732394879896,2.93834,3403.3,3402.9,1.0973]
[1732394880100,2.93841,3403.2,3402.9,1.0973]
[1732394880625,2.93849,3403.2,3402.9,1.0973]
[1732394880909,2.93852,3403.1,3402.9,1.0973]
[1732394881280,2.93825,3403.4,3402.9,4.0973]
[1732394881513,2.93838,3403.3,3402.9,1.0973]
[1732394882297,2.93817,3403.5,3402.9,1.0973]
[1732394882609,2.93846,3403.2,3402.9,1.0973]
[1732394882768,2.93857,3403.1,3402.9,1.0973]
[1732394883608,2.93866,3402.9,3402.8,0.2932]
[1732394883813,0.7687,3402.8,3402.1,0.2932]
[1732394884104,2.93927,3402.2,3402.1,0.2932]
[1732394884471,2.93952,3402.0,3401.8,0.2932]
[1732394884779,2.93952,3402.0,3400.6,3.74475]
[1732394884780,0.7687,3402.0,3400.6,3.74475]
[1732394885002,2.94013,3401.3,3400.7,0.2932]
[1732394885159,2.94015,3401.2,3400.7,3.12109778]
[1732394885366,2.93989,3401.5,3400.7,0.2932]
[1732394885598,2.94016,3401.2,3400.7,0.2932]
[1732394886085,0.7687,3402.0,3401.2,0.2932]
[1732394886310,0.7687,3402.0,3401.1,2.82789778]
[1732394886311,2.93963,3401.8,3401.3,1.0973]
[1732394886517,0.7687,3402.0,3401.3,1.0973]
[1732394886805,2.93996,3401.4,3401.3,0.2932]
[1732394887210,2.9398,3401.6,3401.1,0.2932]
[1732394887364,2.94013,3401.2,3401.1,0.2932]
[1732394887562,2.93996,3401.4,3401.1,0.2932]
[1732394887798,0.03674998,3401.9,3401.1,0.2932]
[1732394888015,2.93988,3401.5,3401.1,0.2932]
[1732394888602,2.94003,3401.4,3401.1,0.2932]
[1732394888808,2.94031,3401.0,3400.8,0.2932]
[1732394889115,2.94039,3400.9,3400.8,0.2932]
[1732394889279,2.94039,3400.9,3400.1,0.775]
[1732394889280,0.588058,3400.9,3400.1,0.775]
[1732394889471,2.94094,3400.3,3399.7,3.60289778]
[1732394889868,0.8333,3400.7,3399.7,3.60289778]
[1732394890161,2.94102,3400.2,3399.8,0.01471611]
[1732394890457,2.94118,3400.0,3399.7,3.60289778]
[1732394890615,2.94085,3400.4,3399.7,6.54431778]
[1732394890818,2.94094,3400.3,3399.7,3.60289778]
[1732394891036,2.94078,3400.5,3399.7,3.60289778]
[1732394891353,2.94078,3400.5,3399.8,2.95604544]
[1732394891650,2.94067,3400.6,3399.9,2.94124]
[1732394891856,2.94067,3400.6,3400.0,3.0]
[1732394892019,0.7698,3401.0,3399.9,3.0]
[1732394892020,2.94075,3400.5,3399.9,3.0]
[1732394892353,0.5842558,3401.3,3399.9,3.0]
[1732394892354,2.94042,3400.9,3400.3,0.7976]
[1732394892563,2.93994,3401.5,3400.5,2.94073]
[1732394892564,2.94015,3401.2,3400.5,2.94073]
[1732394892711,0.293994,3401.4,3400.4,0.01470793]
[1732394893056,1.34918161,3401.6,3400.3,6.73849]
[1732394893057,2.94033,3401.0,3400.3,6.73849]
[1732394893222,2.94004,3401.4,3400.6,3.0]
[1732394893412,2.93988,3401.5,3400.6,2.94063]
[1732394893620,0.7698,3401.6,3400.7,3.0]
[1732394893819,2.93998,3401.4,3400.8,0.7976]
[1732394894117,2.93981,3401.6,3400.8,0.7976]
[1732394894323,2.94002,3401.4,3400.8,0.7976]
[1732394895017,2.94006,3401.3,3400.8,0.7976]
[1732394895222,2.97655974,3401.6,3400.8,0.7976]
[1732394895223,2.93992,3401.5,3400.8,0.7976]
[1732394895523,2.93992,3401.5,3400.9,3.0]
[1732394896250,2.93997,3401.4,3400.9,3.0]
[1732394896460,2.93997,3401.4,3400.8,0.7976]
[1732394896762,0.33072249,3401.6,3400.8,0.7976]
[1732394896962,2.94024,3401.1,3400.7,3.0]
[1732394897862,0.7698,3401.4,3400.3,2.82789778]
[1732394897863,2.94056,3400.8,3400.3,2.82789778]
[1732394898243,2.94031,3401.0,3400.0,2.82789778]
[1732394898244,2.94075,3400.5,3400.0,2.82789778]
[1732394899301,2.94075,3400.5,3400.2,0.2932]
[1732394899599,2.94074,3400.5,3400.2,0.2932]
[1732394900249,2.94074,3400.5,3400.1,0.2932]
[1732394900449,0.36089953,3400.9,3400.1,0.2932]
[1732394900646,2.94068,3400.6,3400.1,0.2932]
[1732394901185,2.9405,3400.8,3400.2,5.82789778]
[1732394901575,2.94067,3400.6,3400.2,5.82789778]
[1732394901890,3.36991113,3400.8,3400.2,5.82789778]
[1732394902799,2.94076,3400.5,3400.2,5.82789778]
[1732394903447,2.94076,3400.5,3400.1,0.2932]
[1732394903448,0.42937113,3400.8,3400.1,0.2932]
[1732394903659,0.42937113,3400.8,3398.7,0.1]
[1732394903660,0.7906,3400.6,3399.6,0.2932]
[1732394903880,2.94134,3399.9,3399.6,0.2932]
[1732394904089,2.94143,3399.7,3399.6,0.2932]
[1732394904261,2.94143,3399.7,3399.2,0.7786]
[1732394904450,2.97834891,3399.6,3399.2,0.7786]
[1732394904651,2.94163,3399.5,3399.0,2.82789778]
[1732394904900,0.7906,3399.9,3399.2,2.94183]
[1732394905268,3.73193,3399.9,3399.2,2.94178]
[1732394905604,0.7906,3400.2,3399.3,5.76966778]
[1732394905836,0.7906,3400.5,3399.6,2.82789778]
[1732394906201,2.94074,3400.5,3399.5,3.0]
[1732394906415,2.94074,3400.5,3399.4,3.72027]
[1732394906416,2.94135,3399.8,3399.4,0.7786]
[1732394906717,2.9415,3399.7,3399.3,3.0]
[1732394907109,2.97835921,3399.6,3399.3,3.0]
[1732394907356,0.0367711,3399.6,3398.8,0.7786]
[1732394907658,2.94184,3399.3,3398.8,0.7786]
[1732394907853,2.94177,3399.4,3398.8,0.7786]
[1732394908021,2.94178,3399.3,3398.8,0.7786]
[1732394908337,2.94153,3399.6,3399.0,3.0]
[1732394908537,3.529811,3399.6,3399.0,3.0]
[1732394908745,2.94163,3399.5,3399.0,3.0]
[1732394908958,2.94147,3399.7,3399.0,3.0]
[1732394909271,3.529753,3399.7,3399.0,5.94203]
[1732394909473,2.94158,3399.6,3399.0,3.0]
[1732394909653,0.588293,3399.5,3399.0,3.0]
[1732394909845,2.94149,3399.7,3399.0,3.0]
[1732394910047,2.94149,3399.7,3399.0,5.94203]
[1732394910356,2.9412,3400.0,3399.2,5.76974778]
[1732394910677,0.7906,3400.1,3399.3,0.7786]
[1732394910827,0.7906,3400.1,3399.4,2.94163]
[1732394911139,0.03676852,3400.0,3399.4,2.94163]
[1732394911342,3.73177,3400.1,3399.4,2.94163]
[1732394911946,3.76853853,3400.1,3399.4,2.94163]
[1732394912144,3.73177,3400.1,3399.4,2.94163]
[1732394912546,2.94132,3399.9,3399.3,3.72037]
[1732394912745,2.97796853,3400.0,3399.3,0.7786]
[1732394912946,3.39069701,3399.9,3399.3,3.72037]
[1732394913185,2.94126,3399.9,3399.3,3.72037]
[1732394914182,0.58602571,3400.3,3399.8,2.82789778]
[1732394914340,0.58602571,3400.3,3399.9,0.2932]
[1732394914674,1.31037928,3400.3,3399.9,0.2932]
[1732394914872,2.94116,3400.1,3399.9,0.2932]
[1732394915370,4.25135928,3400.3,3399.6,0.2932]
[1732394915572,0.776,3400.6,3399.9,2.94119]
[1732394915877,0.776,3400.6,3399.9,0.7932]
[1732394916043,2.9408,3400.5,3399.9,0.7932]
[1732394916238,3.61021351,3400.5,3399.9,0.7932]
[1732394916447,2.94084,3400.4,3399.9,0.7932]
[1732394916879,2.97770509,3400.3,3399.8,0.2932]
[1732394917082,2.94118,3400.0,3399.8,0.2932]
[1732394917751,2.94118,3400.0,3399.5,0.2932]
[1732394918181,2.941,3400.2,3399.5,0.2932]
[1732394918490,3.70667,3399.9,3399.5,0.2932]
[1732394918691,0.036771,3399.8,3399.5,0.2932]
[1732394918986,0.036771,3399.8,3399.1,1.1169]
[1732394919193,0.036771,3399.8,3398.8,5.77010778]
[1732394919430,2.94158,3399.6,3398.9,0.2932]
[1732394919580,2.94176,3399.4,3398.9,0.2932]
[1732394919887,2.94165,3399.5,3398.9,3.2932]
[1732394920100,2.94158,3399.6,3399.0,2.94203]
[1732394920281,0.7654,3399.9,3399.2,2.94186]
[1732394920486,2.94119,3400.0,3399.3,4.05861]
[1732394920856,3.70641,3400.2,3399.5,2.9416]
[1732394921061,2.94101,3400.2,3399.5,2.9416]
[1732394921258,2.9412,3400.0,3399.4,3.23487]
[1732394921580,2.94135,3399.8,3399.4,0.2932]
[1732394921786,3.53327806,3399.8,3399.4,0.2932]
[1732394922108,0.03677063,3399.7,3399.4,0.2932]
[1732394922454,0.03677063,3399.7,3399.0,0.2932]
[1732394922882,2.94187,3399.2,3399.0,0.2932]
[1732394923200,2.94204,3399.0,3398.6,0.8237]
[1732394923358,2.94204,3399.0,3398.3,0.8237]
[1732394923359,2.9789183,3398.9,3398.3,0.8237]
[1732394923561,2.94239,3398.6,3398.3,0.2932]
[1732394923761,0.03678132,3398.5,3398.3,0.2932]
[1732394924392,2.94205,3399.0,3398.1,2.94273]
[1732394925011,2.94205,3399.0,3398.2,2.94269]
[1732394925292,2.94205,3399.0,3398.3,2.94258]
[1732394925493,3.6440553,3399.0,3398.3,2.94258]
[1732394926371,2.97891336,3398.9,3398.1,2.94282]
[1732394926568,2.9423,3398.7,3398.1,3.0]
[1732394926792,0.03678174,3398.6,3398.1,3.0]
[1732394926996,3.70781,3398.6,3398.1,3.0]
[1732394927159,1.43408917,3398.6,3398.0,3.65159778]
[1732394927369,2.94256,3398.4,3398.0,3.65159778]
[1732394927564,0.03678482,3398.3,3398.0,3.65159778]
[1732394927964,2.94248,3398.5,3398.0,3.65159778]
[1732394928302,0.03678476,3398.4,3398.0,3.65159778]
[1732394928806,3.70754,3398.9,3398.2,2.94272]
[1732394929095,3.70754,3398.9,3398.3,2.94264]
[1732394929300,4.42996543,3398.9,3398.1,2.94276]
[1732394929474,4.42996543,3398.9,3398.0,6.59449778]
[1732394929475,4.42996543,3398.9,3398.2,2.94272]
[1732394929890,2.94195,3399.1,3398.0,6.59449778]
[1732394929891,2.94195,3399.1,3398.4,2.82789778]
[1732394930109,2.9421,3399.0,3398.4,2.82789778]
[1732394930601,3.70732,3399.2,3398.4,5.77044778]
[1732394930808,4.07804,3399.2,3398.4,5.77044778]
[1732394931409,2.94196,3399.1,3398.5,2.94246]
[1732394932414,2.94204,3399.0,3398.4,2.82789778]
[1732394932584,3.7041096,3399.0,3398.4,2.82789778]
[1732394933175,3.7041096,3399.0,3398.5,2.94245]
[1732394933176,0.7620696,3399.0,3398.5,2.94245]
[1732394933376,3.70729,3399.2,3398.5,2.94245]
[1732394934572,3.70729,3399.2,3398.4,2.82789778]
[1732394934573,2.97879102,3399.1,3398.4,5.77043778]
[1732394935113,2.94201,3399.1,3398.4,5.77043778]
[1732394935309,0.7654,3399.2,3398.4,2.82789778]
[1732394935511,3.70729,3399.2,3398.6,2.94237]
[1732394935917,3.54259597,3399.3,3398.7,0.7977]
[1732394936117,2.94189,3399.2,3398.7,0.7977]
[1732394936323,2.94196,3399.1,3398.4,6.56814778]
[1732394936523,3.33570081,3399.1,3398.4,3.74025]
[1732394937014,3.33570081,3399.1,3398.5,2.94245]
[1732394937376,0.39374081,3399.1,3398.4,0.7977]
[1732394937583,0.60081597,3399.3,3398.6,2.94237]
[1732394937917,0.60081597,3399.3,3398.7,2.94227]
[1732394938484,3.54259597,3399.3,3398.7,2.94227]
[1732394939096,4.26853757,3399.3,3398.5,2.94247]
[1732394939300,0.0367786,3399.2,3398.4,3.91879778]
[1732394939507,0.7874,3398.9,3398.2,0.2932]
[1732394939715,2.94237,3398.7,3398.2,0.2932]
[1732394940032,0.7874,3398.3,3398.2,0.2932]
[1732394940241,3.7668274,3398.3,3398.2,0.2932]
[1732394940439,2.94282,3398.1,3397.6,0.2932]
[1732394940599,2.94282,3398.1,3397.5,0.2932]
[1732394940929,0.7874,3398.3,3397.5,6.06435778]
[1732394941095,2.94281,3398.2,3397.5,6.06435778]
[1732394941497,2.94281,3398.2,3397.6,2.94324]
[1732394941715,0.7874,3398.3,3397.5,6.06440778]
[1732394941925,0.7874,3398.3,3397.7,2.94308]
[1732394942105,2.94274,3398.2,3397.5,6.06440778]
[1732394942434,2.94274,3398.2,3397.6,2.94325]
[1732394942835,0.7874,3398.3,3397.7,2.94315]
[1732394942996,2.94253,3398.5,3397.8,3.70397]
[1732394943525,0.8292,3398.6,3398.1,2.82789778]
[1732394943720,0.8292,3398.9,3398.1,5.77064778]
[1732394943907,0.8292,3399.2,3398.4,5.77038778]
[1732394944121,3.77081,3399.5,3398.7,3.12109778]
[1732394944300,3.77081,3399.5,3398.9,0.2932]
[1732394944497,0.671225,3399.4,3398.9,3.23526]
[1732394944740,0.8292,3399.5,3398.9,3.23526]
[1732394945039,3.77083,3399.5,3398.9,3.23526]
[1732394945255,2.94172,3399.4,3398.9,0.2932]
[1732394945540,0.03677783,3399.3,3398.9,0.2932]
[1732394945723,3.64973893,3399.4,3398.9,0.2932]
[1732394946037,3.612941,3399.4,3398.9,0.2932]
[1732394946224,0.53938342,3399.3,3398.8,0.2932]
[1732394946431,2.94187,3399.2,3398.8,0.2932]
[1732394946652,0.03677779,3399.1,3398.8,0.2932]
[1732394946849,2.94185,3399.3,3398.8,0.2932]
[1732394947158,2.94212,3398.9,3398.8,0.2932]
[1732394947364,2.94221,3398.8,3398.2,1.0541]
[1732394947657,3.61723125,3398.8,3398.2,1.0541]
[1732394948563,0.67502125,3398.8,3398.2,3.99677]
[1732394948732,0.8292,3399.1,3398.3,5.77053778]
[1732394948942,0.8292,3399.1,3398.3,6.06373778]
[1732394949122,0.03678082,3399.5,3398.6,2.82789778]
[1732394949324,0.8292,3399.5,3398.9,3.70297]
[1732394949551,0.73273357,3399.4,3399.0,2.94198]
[1732394949858,0.03677467,3399.5,3399.0,2.94198]
[1732394950475,2.97843467,3399.5,3398.9,0.2932]
[1732394950658,0.35564805,3399.5,3398.9,0.2932]
[1732394950834,0.8292,3399.9,3399.3,2.94178]
[1732394951037,3.77054,3399.9,3399.2,2.9418]
[1732394951339,0.671155,3399.8,3399.2,2.9418]
[1732394952332,0.671155,3399.8,3399.2,3.7214]
[1732394952534,0.671155,3399.8,3399.2,0.7796]
[1732394952861,2.94109,3400.1,3399.5,2.9416]
[1732394953048,3.71797,3400.2,3399.5,2.94152]
[1732394953231,3.71797,3400.2,3399.3,2.82789778]
[1732394953232,3.312887,3400.1,3399.3,2.82789778]
[1732394953437,2.94142,3399.8,3399.2,1.0728]
[1732394953740,0.03677046,3399.7,3399.2,1.0728]
[1732394954091,2.94142,3399.8,3399.1,3.23509]
[1732394954386,2.94142,3399.8,3399.0,2.82789778]
[1732394954387,0.588259,3399.7,3399.3,0.2932]
[1732394954757,0.588259,3399.7,3399.4,2.94168]
[1732394954965,2.94115,3400.1,3399.4,2.94168]
[1732394955374,3.71793,3400.2,3399.4,2.94168]
[1732394955557,2.94117,3400.0,3399.4,2.94168]
[1732394956089,3.71793,3400.2,3399.3,0.2932]
[1732394956258,0.7769,3400.2,3399.8,2.94132]
[1732394956580,2.94085,3400.4,3399.8,2.94132]
[1732394957094,2.94093,3400.3,3399.7,2.82789778]
[1732394957388,0.64578515,3400.2,3399.7,2.82789778]
[1732394957961,0.58733665,3399.9,3399.7,2.82789778]
[1732394958361,0.58733665,3399.9,3399.8,2.94134]
[1732394959199,0.58733665,3399.9,3399.7,2.82789778]
[1732394959858,0.58733665,3399.9,3399.6,0.7796]
[1732394960177,2.9781176,3399.8,3399.1,2.94194]
[1732394960375,0.72834043,3399.8,3399.1,3.0]
[1732394960578,0.7767,3399.9,3399.4,2.94163]
[1732394960950,0.7767,3399.9,3399.1,3.0]
[1732394961263,2.94135,3399.8,3399.2,2.94184]
[1732394961606,1.148479,3399.9,3399.3,2.94171]
[1732394961746,0.7767,3399.9,3399.3,2.94171]
[1732394962176,0.7767,3399.9,3399.3,2.9417]
[1732394962357,0.7767,3399.9,3399.3,2.94172]
[1732394962573,0.03677084,3400.2,3399.5,2.9416]
[1732394962574,2.94109,3400.1,3399.5,2.9416]
[1732394962789,0.65099686,3400.1,3399.4,2.82789778]
[1732394962977,2.9414,3399.8,3399.4,2.82789778]
[1732394963177,2.97821084,3399.7,3399.4,2.82789778]
[1732394963379,0.7767,3400.2,3399.4,2.82789778]
[1732394963578,2.94124,3400.0,3399.4,2.82789778]
[1732394963751,2.94135,3399.8,3399.4,2.82789778]
[1732394963950,2.94135,3399.8,3399.0,2.82789778]
[1732394963951,2.94162,3399.5,3399.0,2.82789778]
[1732394964152,0.0367727,3399.4,3399.0,2.82789778]
[1732394964397,0.0367727,3399.4,3398.7,0.2932]
[1732394964694,2.94203,3399.1,3398.7,0.2932]
[1732394964878,0.03677812,3399.0,3398.7,0.2932]
[1732394965196,3.71886,3398.9,3398.3,3.61149778]
[1732394965351,3.75564186,3398.9,3398.3,3.61149778]
[1732394965763,2.94222,3398.8,3398.3,3.61149778]
[1732394966393,2.94173,3399.4,3398.6,2.82789778]
[1732394966394,2.94187,3399.2,3398.6,2.82789778]
[1732394966582,2.94187,3399.2,3398.6,5.77026778]
[1732394967352,2.94187,3399.2,3398.6,2.82789778]
[1732394967597,2.94208,3399.0,3398.6,2.82789778]
[1732394967765,0.0367798,3399.1,3398.6,2.82789778]
[1732394967972,2.94224,3398.8,3398.3,3.61149778]
[1732394968152,2.94209,3399.0,3398.4,2.9425]
[1732394968353,2.94209,3399.0,3398.3,6.55411778]
[1732394968557,2.9789098,3398.9,3398.3,3.61149778]
[1732394968793,2.94222,3398.8,3398.3,3.61149778]
[1732394968992,0.03678153,3398.7,3398.3,3.61149778]
[1732394969215,2.9422,3398.9,3398.3,3.61149778]
[1732394969421,2.94209,3399.0,3398.4,2.94253]
[1732394969784,2.94197,3399.1,3398.3,3.61149778]
[1732394969985,2.94186,3399.2,3398.3,6.55406778]
[1732394970709,2.94207,3399.0,3398.3,6.55406778]
[1732394971124,2.94186,3399.2,3398.7,2.82789778]
[1732394971412,0.03677803,3399.1,3398.7,2.82789778]
[1732394971797,2.94186,3399.2,3398.7,2.82789778]
[1732394971982,3.71841,3399.4,3398.7,5.77017778]
[1732394972181,2.94171,3399.4,3398.9,0.8094]
[1732394972781,2.9783059,3399.6,3398.9,3.75146]
[1732394973015,2.94153,3399.6,3398.9,3.75146]
[1732394973919,2.94153,3399.6,3399.0,2.94203]
[1732394974070,2.94162,3399.5,3398.9,3.75151]
[1732394975012,3.75074,3399.7,3398.9,0.8094]
[1732394975013,2.94169,3399.4,3398.9,0.8094]
[1732394975607,2.94123,3400.0,3399.1,2.82789778]
[1732394975782,2.9414,3399.8,3399.2,2.94178]
[1732394975978,2.94123,3400.0,3399.1,2.82789778]
[1732394976235,2.94142,3399.8,3399.1,5.76983778]
[1732394976884,2.94142,3399.8,3399.2,2.94186]
[1732394977691,3.37587542,3399.9,3399.2,2.94186]
[1732394977890,2.94123,3400.0,3399.4,2.82789778]
[1732394978104,1.40472424,3400.1,3399.7,2.82789778]
[1732394978105,0.59542424,3400.1,3399.7,2.82789778]
[1732394979219,0.59542424,3400.1,3399.5,0.8094]
[1732394979431,0.03676951,3400.0,3399.6,0.2932]
[1732394979582,0.59542424,3400.1,3399.8,2.94133]
[1732394980085,0.59542424,3400.1,3400.0,5.76906778]
[1732394980285,0.8093,3400.7,3400.0,2.82789778]
[1732394980583,0.8093,3400.7,3400.3,2.82789778]
[1732394980781,3.74962,3401.0,3400.3,2.82789778]
[1732394980985,3.234432,3400.9,3400.3,5.76874778]
[1732394981428,2.97725087,3400.8,3400.3,2.82789778]
[1732394982085,0.294032,3400.9,3400.3,5.76879778]
[1732394982086,3.234452,3400.9,3400.3,5.76879778]
[1732394982291,2.94042,3400.9,3400.3,5.76879778]
[1732394983423,2.94059,3400.7,3400.3,2.82789778]
[1732394983639,0.7517,3401.4,3400.6,2.82789778]
[1732394983932,2.94014,3401.2,3400.6,2.82789778]
[1732394984151,3.603313,3401.2,3400.7,0.809]
[1732394984287,2.94014,3401.2,3400.7,0.809]
[1732394984934,0.7517,3401.4,3400.7,0.809]
[1732394984935,3.69172,3401.4,3400.7,0.809]
[1732394985092,2.94006,3401.3,3400.7,0.809]
[1732394985287,2.94023,3401.1,3400.7,0.809]
[1732394985629,0.03675567,3401.0,3400.4,0.809]
[1732394985929,2.94039,3401.0,3400.4,0.809]
[1732394986107,0.03675687,3400.9,3400.4,0.809]
[1732394986506,2.97715687,3400.9,3400.4,0.809]
[1732394986707,0.03675687,3400.9,3400.4,0.809]
[1732394986993,2.97706687,3401.0,3400.4,0.809]
[1732394987297,0.03675687,3401.0,3400.5,2.9407]
[1732394987613,2.97695686,3401.2,3400.5,2.9407]
[1732394988088,2.9402,3401.2,3400.5,2.9407]
[1732394988725,2.94007,3401.3,3400.5,2.94067]
[1732394988927,2.94007,3401.3,3400.7,2.94056]
[1732394989732,2.94007,3401.3,3400.6,2.82789778]
[1732394989733,0.59836339,3400.8,3400.6,2.82789778]
[1732394990333,2.94016,3401.2,3400.6,2.82789778]
[1732394990632,2.94023,3401.1,3400.6,2.82789778]
[1732394990813,2.94037,3401.0,3400.6,2.82789778]
[1732394991017,0.03675688,3400.9,3400.6,2.82789778]
[1732394991404,2.97716688,3400.9,3400.6,2.82789778]
[1732394991812,0.03675688,3400.9,3400.4,0.809]
[1732394992019,2.94057,3400.7,3400.4,0.809]
[1732394992523,2.97748929,3400.6,3400.2,2.82789778]
[1732394993230,2.94083,3400.4,3400.2,2.82789778]
[1732394993442,2.9408,3400.5,3400.2,2.82789778]
[1732394993741,0.03676189,3400.4,3400.2,2.82789778]
[1732394993909,0.03676189,3400.5,3400.2,2.82789778]
[1732394994113,2.94049,3400.8,3400.2,2.82789778]
[1732394994312,2.94031,3401.0,3400.5,3.58839778]
[1732394994723,2.94051,3400.8,3400.5,3.58839778]
[1732394995935,2.94015,3401.2,3400.5,3.58839778]
[1732394996148,2.94028,3401.1,3400.5,3.58839778]
[1732394997223,2.94015,3401.2,3400.5,3.58839778]
[1732394998047,2.94022,3401.1,3400.5,3.58839778]
[1732394998947,2.94006,3401.3,3400.5,3.58839778]
[1732394998948,5.88017,3401.3,3400.5,6.52910778]
[1732394999168,2.94006,3401.3,3400.6,2.94062]
[1732394999646,1.4024671,3401.4,3400.6,2.94062]
[1732394999647,0.5903671,3401.4,3400.9,2.82789778]
[1732394999848,3.5303871,3401.4,3401.0,0.7605]
[1732395000157,0.5903671,3401.4,3401.0,0.7605]
[1732395000656,0.8121,3401.9,3401.3,2.82789778]
[1732395000657,2.93984,3401.6,3401.3,2.82789778]
[1732395002543,2.93975,3401.7,3401.3,2.82789778]
[1732395002904,2.9398,3401.6,3401.3,2.82789778]
[1732395003243,0.59459617,3401.7,3401.3,2.82789778]
[1732395003438,0.59459617,3401.7,3401.0,0.7605]
[1732395003439,2.93988,3401.5,3401.0,3.58839778]
[1732395003644,6.47407617,3401.7,3401.0,3.58839778]
[1732395003955,3.53431617,3401.7,3401.0,6.52868778]
[1732395004264,3.53431617,3401.7,3401.5,0.7605]
[1732395004265,0.59459617,3401.7,3401.5,0.7605]
[1732395004441,0.59459617,3401.7,3401.6,0.2932]
[1732395004831,3.53429617,3401.7,3401.6,0.2932]
[1732395005367,2.9397,3401.7,3401.6,0.2932]
[1732395005857,2.93979,3401.6,3401.3,0.2932]
[1732395006075,0.03675112,3401.5,3401.3,0.2932]
[1732395006356,2.93996,3401.4,3401.3,0.2932]
[1732395006560,0.0367511,3401.5,3401.3,0.2932]
[1732395006783,0.0367511,3401.5,3401.0,0.2932]
[1732395007088,2.93979,3401.6,3401.0,0.2932]
[1732395007089,2.93979,3401.6,3401.0,3.2335]
[1732395007244,2.9397,3401.7,3401.2,0.2932]
[1732395007588,2.93997,3401.4,3401.2,0.2932]
[1732395007883,2.9397,3401.7,3401.2,0.2932]
[1732395008184,2.93993,3401.5,3401.0,0.2932]
[1732395008655,0.8121,3401.9,3401.0,0.2932]
[1732395008656,2.94015,3401.2,3401.0,0.2932]
[1732395008854,2.94032,3401.0,3400.7,0.7605]
[1732395009073,2.94022,3401.1,3400.7,0.7605]
[1732395009681,0.03675558,3401.0,3400.7,0.7605]
[1732395010049,0.8121,3401.3,3400.7,0.7605]
[1732395010425,0.8121,3401.3,3400.6,0.2932]
[1732395010426,2.94055,3400.8,3400.6,0.2932]
[1732395010776,2.97732785,3400.7,3400.6,0.2932]
[1732395011140,2.94057,3400.7,3400.6,0.2932]
[1732395011479,2.97733007,3400.7,3400.6,0.2932]
[1732395011680,2.94037,3401.0,3400.6,0.2932]
[1732395011880,2.94037,3401.0,3400.4,2.82789778]
[1732395011881,2.94065,3400.6,3400.5,0.2932]
[1732395013087,2.94065,3400.6,3400.1,0.7605]
[1732395013088,2.94096,3400.3,3400.2,0.2932]
[1732395013589,2.94096,3400.3,3399.5,0.7878]
[1732395013590,0.03676495,3400.3,3399.5,0.7878]
[1732395013886,2.94146,3399.7,3399.5,0.7878]
[1732395014094,2.94128,3399.9,3399.6,0.2932]
[1732395014324,2.94047,3400.9,3399.5,0.7878]
[1732395014325,3.72413,3400.6,3399.5,3.7878]
[1732395014600,2.94136,3399.8,3399.5,3.7878]
[1732395015092,0.7834,3400.6,3399.5,3.7878]
[1732395015301,2.94101,3400.2,3399.5,6.72939]
[1732395015594,0.03676721,3400.3,3399.5,3.7878]
[1732395015803,0.03676721,3400.1,3399.5,3.7878]
[1732395015968,2.94124,3400.0,3399.5,3.7878]
[1732395016794,2.94126,3399.9,3399.5,3.7878]
[1732395017094,2.97805746,3399.9,3399.5,0.7878]
[1732395017300,2.94129,3399.9,3399.5,0.7878]
[1732395019363,2.94152,3399.6,3399.5,0.7878]
[1732395019607,2.94146,3399.7,3399.5,0.02035626]
[1732395019806,2.97829259,3399.6,3399.5,0.02035626]
[1732395020466,3.76169259,3399.6,3398.5,0.7878]
[1732395020698,2.94213,3398.9,3398.5,0.7878]
[1732395021077,2.94196,3399.1,3398.5,3.73025]
[1732395021278,2.94205,3399.0,3398.5,0.7878]
[1732395024036,2.94187,3399.2,3398.5,0.7878]
[1732395024215,2.94187,3399.2,3398.6,2.9571266]
[1732395024417,2.94187,3399.2,3398.7,0.2932]
[1732395025886,2.94187,3399.2,3398.6,2.94238]
[1732395025887,0.7834,3399.9,3399.1,0.7878]
[1732395026085,2.94171,3399.4,3399.1,0.7878]
[1732395026292,2.94186,3399.2,3399.1,0.7878]
[1732395027123,2.94171,3399.4,3399.1,0.7878]
[1732395027614,2.94186,3399.2,3399.1,0.7878]
[1732395027925,2.94178,3399.3,3399.1,0.7878]
[1732395028232,2.94186,3399.2,3399.1,0.7878]
[1732395028548,2.9421,3399.0,3398.8,1.081]
[1732395028690,2.94202,3399.1,3398.8,1.081]
[1732395029115,2.94186,3399.2,3398.8,1.081]
[1732395029330,2.94205,3399.0,3398.8,1.081]
[1732395029738,2.94226,3398.8,3398.6,0.2932]
[1732395030545,2.9421,3399.0,3398.6,0.2932]
[1732395031044,2.94216,3398.9,3398.6,0.2932]
[1732395031340,2.9423,3398.7,3398.6,0.2932]
[1732395031947,3.00185118,3398.7,3398.6,0.2932]
[1732395032746,0.05955118,3398.7,3398.6,0.2932]
[1732395033162,2.94216,3398.9,3398.6,0.2932]
[1732395033504,2.9423,3398.7,3398.2,4.1064]
[1732395033704,2.94251,3398.5,3398.2,1.1064]
[1732395033949,2.94247,3398.5,3398.2,1.1064]
[1732395035103,2.9423,3398.7,3398.2,1.1064]
[1732395035309,2.94239,3398.6,3398.2,1.1064]
[1732395035620,2.94264,3398.3,3398.2,1.1064]
[1732395035962,2.94282,3398.1,3398.0,0.2932]
[1732395036471,3.00175705,3398.1,3398.0,0.2932]
[1732395036770,2.94342,3397.5,3397.4,0.2932]
[1732395037261,0.05866964,3397.5,3397.4,0.2932]
[1732395037626,2.94308,3397.8,3397.4,0.2932]